fUSD/lending_fUSD_20241221
["ID","MTS","AMOUNT","RATE_DAILY","PERIOD"]
[346202854,1734773492557,-532.02,0.00020821,2]
[346202855,1734773492566,-500.0,0.00020821,2]
[346202856,1734773492576,-500.0,0.00020821,2]
[346202857,1734773492585,-500.0,0.00020821,2]
[346202858,1734773492595,-500.0,0.00020821,2]
[346202859,1734773492604,-500.0,0.00020821,2]
[346202860,1734773492614,-618.06,0.00020821,2]
[346202861,1734773492623,-537.79634671,0.00020821,2]
[346202862,1734773492633,-500.0,0.00020821,2]
[346202863,1734773492642,-543.65,0.00020821,2]
[346202864,1734773492652,-729.77,0.00020821,2]
[346202865,1734773492661,-500.0,0.00020821,2]
[346202866,1734773492671,-500.0,0.00020821,2]
[346202867,1734773492680,-500.0,0.00020821,2]
[346202868,1734773492689,-580.56698961,0.00020821,2]
[346202869,1734773492698,-834.73,0.00020821,2]
[346202870,1734773492707,-702.21,0.00020821,2]
[346202871,1734773492717,-500.0,0.00020821,2]
[346202872,1734773492727,-500.0,0.00020821,2]
[346202873,1734773492736,-769.61,0.00020821,2]
[346202874,1734773492745,-500.0,0.00020821,2]
[346202875,1734773492755,-500.0,0.00020821,2]
[346202876,1734773492764,-500.0,0.00020821,2]
[346202877,1734773492774,-1002.7,0.00020821,2]
[346202878,1734773492785,-507.9,0.00020821,2]
[346202879,1734773492794,-500.0,0.00020821,2]
[346202880,1734773492804,-500.0,0.00020821,2]
[346202881,1734773492813,-905.36,0.00020821,2]
[346202882,1734773492823,-500.0,0.00020821,2]
[346202883,1734773492832,-500.0,0.00020821,2]
[346202884,1734773492842,-500.0,0.00020821,2]
[346202885,1734773492851,-500.0,0.00020821,2]
[346202886,1734773492861,-685.89,0.00020821,2]
[346202887,1734773492871,-847.86,0.00020821,2]
[346202888,1734773492880,-500.0,0.00020821,2]
[346202889,1734773492890,-902.93,0.00020821,2]
[346202890,1734773492899,-596.7,0.00020821,2]
[346202891,1734773492908,-500.0,0.00020821,2]
[346202892,1734773492918,-500.0,0.00020821,2]
[346202893,1734773492927,-500.0,0.00020821,2]
[346202894,1734773492936,-1374.67,0.00020821,2]
[346202895,1734773492946,-506.13,0.00020821,2]
[346202896,1734773492955,-547.02,0.00020821,2]
[346202897,1734773492965,-500.0,0.00020821,2]
[346202898,1734773492975,-500.0,0.00020821,2]
[346202899,1734773492985,-1494.46,0.00020821,2]
[346202900,1734773492994,-500.0,0.00020821,2]
[346202901,1734773493003,-634.46,0.00020821,2]
[346202902,1734773493012,-813.36,0.00020821,2]
[346202903,1734773493022,-500.0,0.00020821,2]
[346202904,1734773493031,-1810.25,0.00020821,2]
[346202905,1734773493041,-739.39,0.00020821,2]
[346202906,1734773493051,-500.0,0.00020821,2]
[346202907,1734773493061,-500.0,0.00020821,2]
[346202908,1734773493071,-907.54,0.00020821,2]
[346202909,1734773493081,-589.82,0.00020821,2]
[346202910,1734773493091,-500.0,0.00020821,2]
[346202911,1734773493100,-1931.15,0.00020821,2]
[346202912,1734773493110,-527.82,0.00020821,2]
[346202913,1734773493120,-500.0,0.00020821,2]
[346202914,1734773493130,-614.04,0.00020821,2]
[346202915,1734773493139,-500.0,0.00020821,2]
[346202916,1734773493148,-500.0,0.00020821,2]
[346202917,1734773493157,-800.36,0.00020821,2]
[346202918,1734773493167,-500.0,0.00020821,2]
[346202919,1734773493177,-500.0,0.00020821,2]
[346202920,1734773493186,-500.0,0.00020821,2]
[346202921,1734773493195,-500.0,0.00020821,2]
[346202922,1734773493205,-1122.34,0.00020821,2]
[346202923,1734773493214,-814.04,0.00020821,2]
[346202924,1734773493224,-500.0,0.00020821,2]
[346202925,1734773493237,-552.47,0.00020821,2]
[346202926,1734773493247,-594.91,0.00020821,2]
[346202927,1734773493256,-500.0,0.00020821,2]
[346202928,1734773493266,-1064.96,0.00020821,2]
[346202929,1734773493276,-500.0,0.00020821,2]
[346202930,1734773493287,-500.0,0.00020821,2]
[346202931,1734773493297,-870.97,0.00020821,2]
[346202932,1734773493307,-500.0,0.00020821,2]
[346202933,1734773493317,-503.3571533,0.00020821,2]
[346202934,1734773493327,-932.63,0.00020821,2]
[346202935,1734773493336,-500.0,0.00020821,2]
[346202936,1734773493346,-500.0,0.00020821,2]
[346202937,1734773493355,-551.58,0.00020821,2]
[346202938,1734773493366,-621.57,0.00020821,2]
[346202939,1734773493376,-500.0,0.00020821,2]
[346202940,1734773493385,-500.0,0.00020821,2]
[346202941,1734773493394,-500.0,0.00020821,2]
[346202942,1734773493404,-571.12,0.00020821,2]
[346202943,1734773493414,-608.52,0.00020821,2]
[346202944,1734773493424,-500.0,0.00020821,2]
[346202945,1734773493433,-504.83,0.00020821,2]
[346202946,1734773493443,-500.0,0.00020821,2]
[346202947,1734773493452,-645.02,0.00020821,2]
[346202948,1734773493462,-500.0,0.00020821,2]
[346202949,1734773493471,-1533.28,0.00020821,2]
[346202950,1734773493481,-515.65,0.00020821,2]
[346202951,1734773493491,-500.0,0.00020821,2]
[346202952,1734773493501,-500.0,0.00020821,2]
[346202953,1734773493510,-500.0,0.00020821,2]
[346202954,1734773493520,-500.0,0.00020821,2]
[346202955,1734773493529,-156.541348,0.00020821,2]
[346202956,1734773493539,-1776.17307,0.00020821,2]
[346202957,1734773493549,-500.0,0.00020821,2]
[346202958,1734773493559,-687.23,0.00020821,2]
[346202959,1734773493569,-500.0,0.00020821,2]
[346202960,1734773493579,-668.01,0.00020821,2]
[346202961,1734773493588,-500.0,0.00020821,2]
[346202962,1734773493598,-500.0,0.00020821,2]
[346202963,1734773493608,-500.0,0.00020821,2]
[346202964,1734773493619,-528.77,0.00020821,2]
[346202965,1734773493629,-784.71,0.00020821,2]
[346202966,1734773493639,-500.0,0.00020821,2]
[346202967,1734773493648,-500.0,0.00020821,2]
[346202968,1734773493658,-500.0,0.00020821,2]
[346202969,1734773493667,-500.0,0.00020821,2]
[346202970,1734773493677,-1271.57,0.00020821,2]
[346202971,1734773493687,-500.0,0.00020821,2]
[346202972,1734773493697,-500.0,0.00020821,2]
[346202973,1734773493706,-1374.17,0.00020821,2]
[346202974,1734773493715,-1127.2,0.00020821,2]
[346202975,1734773493726,-852.34,0.00020821,2]
[346202976,1734773493735,-2741.171611,0.00020821,2]
[346202977,1734773493745,-504.93,0.00020821,2]
[346202978,1734773493754,-500.0,0.00020821,2]
[346202979,1734773493764,-500.0,0.00020821,2]
[346202980,1734773493774,-500.0,0.00020821,2]
[346202981,1734773493784,-886.06,0.00020821,2]
[346202982,1734773493793,-500.0,0.00020821,2]
[346202983,1734773493803,-736.41,0.00020821,2]
[346202984,1734773493813,-500.0,0.00020821,2]
[346202985,1734773493823,-552.37,0.00020821,2]
[346202986,1734773493833,-1143.79,0.00020821,2]
[346202987,1734773493842,-500.0,0.00020821,2]
[346202988,1734773493852,-502.94726961,0.00020821,2]
[346202989,1734773493862,-500.0,0.00020821,2]
[346202990,1734773493872,-1053.96,0.00020821,2]
[346202991,1734773493882,-500.0,0.00020821,2]
[346202992,1734773493892,-500.0,0.00020821,2]
[346202993,1734773493901,-1376.42,0.00020821,2]
[346202994,1734773493911,-500.0,0.00020821,2]
[346202995,1734773493921,-500.0,0.00020821,2]
[346202996,1734773493931,-500.0,0.00020821,2]
[346202997,1734773493941,-500.0,0.00020821,2]
[346202998,1734773493951,-599.42,0.00020821,2]
[346202999,1734773493960,-500.0,0.00020821,2]
[346203000,1734773493970,-500.0,0.00020821,2]
[346203001,1734773493979,-781.07,0.00020821,2]
[346203002,1734773493989,-500.0,0.00020821,2]
[346203003,1734773493999,-748.53,0.00020821,2]
[346203004,1734773494009,-500.0,0.00020821,2]
[346203005,1734773494019,-500.0,0.00020821,2]
[346203006,1734773494028,-755.41,0.00020821,2]
[346203007,1734773494039,-500.0,0.00020821,2]
[346203008,1734773494048,-559.95,0.00020821,2]
[346203009,1734773494057,-500.0,0.00020821,2]
[346203010,1734773494067,-1490.75,0.00020821,2]
[346203011,1734773494076,-500.0,0.00020821,2]
[346203012,1734773494085,-500.0,0.00020821,2]
[346203013,1734773494095,-500.0,0.00020821,2]
[346203014,1734773494104,-500.0,0.00020821,2]
[346203015,1734773494113,-500.0,0.00020821,2]
[346203016,1734773494123,-500.0,0.00020821,2]
[346203017,1734773494132,-500.0,0.00020821,2]
[346203018,1734773494142,-500.0,0.00020821,2]
[346203019,1734773494151,-687.98,0.00020821,2]
[346203020,1734773494160,-656.36,0.00020821,2]
[346203021,1734773494169,-500.0,0.00020821,2]
[346203022,1734773494179,-500.0,0.00020821,2]
[346203023,1734773494188,-668.09,0.00020821,2]
[346203024,1734773494198,-500.0,0.00020821,2]
[346203025,1734773494207,-1005.06,0.00020821,2]
[346203026,1734773494217,-222.02881883,0.00020821,2]
[346203027,1734773494227,-500.0,0.00020821,2]
[346203028,1734773494239,-500.0,0.00020821,2]
[346203029,1734773494248,-853.8,0.00020821,2]
[346203030,1734773494258,-511.49257826,0.00020821,2]
[346203031,1734773494268,-806.29,0.00020821,2]
[346203032,1734773494279,-1139.76,0.00020821,2]
[346203033,1734773494290,-543.54,0.00020821,2]
[346203034,1734773494300,-500.0,0.00020821,2]
[346203035,1734773494311,-602.77,0.00020821,2]
[346203036,1734773494320,-500.0,0.00020821,2]
[346203037,1734773494330,-845.78,0.00020821,2]
[346203038,1734773494340,-500.0,0.00020821,2]
[346203039,1734773494350,-1302.53,0.00020821,2]
[346203040,1734773494359,-500.0,0.00020821,2]
[346203041,1734773494369,-1369.09,0.00020821,2]
[346203042,1734773494379,-308.65465792,0.00020821,2]
[346203043,1734773494388,-500.0,0.00020821,2]
[346203044,1734773494398,-962.8,0.00020821,2]
[346203045,1734773494407,-809.27,0.00020821,2]
[346203046,1734773494416,-500.0,0.00020821,2]
[346203047,1734773494425,-500.0,0.00020821,2]
[346203048,1734773494435,-1375.81,0.00020821,2]
[346203049,1734773494445,-500.0,0.00020821,2]
[346203050,1734773494455,-541.05,0.00020821,2]
[346203051,1734773494464,-890.86,0.00020821,2]
[346203052,1734773494475,-500.0,0.00020821,2]
[346203053,1734773494486,-500.0,0.00020821,2]
[346203054,1734773494498,-500.0,0.00020821,2]
[346203055,1734773494508,-500.0,0.00020821,2]
[346203056,1734773494517,-500.0,0.00020821,2]
[346203057,1734773494526,-962.15,0.00020821,2]
[346203058,1734773494538,-500.0,0.00020821,2]
[346203059,1734773494547,-500.0,0.00020821,2]
[346203060,1734773494557,-1179.31,0.00020821,2]
[346203061,1734773494566,-1057.42,0.00020821,2]
[346203062,1734773494575,-808.61,0.00020821,2]
[346203063,1734773494584,-1000.37,0.00020821,2]
[346203064,1734773494593,-500.0,0.00020821,2]
[346203065,1734773494603,-1022.01,0.00020821,2]
[346203066,1734773494613,-500.0,0.00020821,2]
[346203067,1734773494622,-1003.14,0.00020821,2]
[346203068,1734773494633,-768.28,0.00020821,2]
[346203069,1734773494643,-500.0,0.00020821,2]
[346203070,1734773494653,-500.0,0.00020821,2]
[346203071,1734773494664,-500.0,0.00020821,2]
[346203072,1734773494673,-500.0,0.00020821,2]
[346203073,1734773494684,-603.92,0.00020821,2]
[346203074,1734773494694,-655.6,0.00020821,2]
[346203075,1734773494704,-910.93,0.00020821,2]
[346203076,1734773494714,-693.18,0.00020821,2]
[346203077,1734773494723,-500.0,0.00020821,2]
[346203078,1734773494733,-1405.78,0.00020821,2]
[346203079,1734773494742,-500.0,0.00020821,2]
[346203080,1734773494751,-1661.19,0.00020821,2]
[346203081,1734773494760,-569.58,0.00020821,2]
[346203082,1734773494770,-500.0,0.00020821,2]
[346203083,1734773494779,-500.0,0.00020821,2]
[346203084,1734773494790,-625.66,0.00020821,2]
[346203085,1734773494800,-500.0,0.00020821,2]
[346203086,1734773494809,-500.0,0.00020821,2]
[346203087,1734773494819,-500.0,0.00020821,2]
[346203088,1734773494828,-500.0,0.00020821,2]
[346203089,1734773494837,-815.77,0.00020821,2]
[346203090,1734773494847,-1379.55,0.00020821,2]
[346203091,1734773494855,-888.28,0.00020821,2]
[346203092,1734773494865,-7587.43,0.00020821,2]
[346203093,1734773494874,-584.89,0.00020821,2]
[346203094,1734773494884,-500.0,0.00020821,2]
[346203095,1734773494894,-500.0,0.00020821,2]
[346203096,1734773494902,-500.0,0.00020821,2]
[346203097,1734773494912,-1621.1,0.00020821,2]
[346203098,1734773494922,-635.11,0.00020821,2]
[346203099,1734773494931,-519.97,0.00020821,2]
[346203100,1734773494941,-500.0,0.00020821,2]
[346203101,1734773494951,-594.39,0.00020821,2]
[346203102,1734773494960,-981.0,0.00020821,2]
[346203103,1734773494970,-540.89,0.00020821,2]
[346203104,1734773494980,-527.5456063,0.00020821,2]
[346203105,1734773494989,-649.72,0.00020821,2]
[346203106,1734773494999,-500.0,0.00020821,2]
[346203107,1734773495008,-1791.49,0.00020821,2]
[346203108,1734773495018,-632.59,0.00020821,2]
[346203109,1734773495027,-500.0,0.00020821,2]
[346203110,1734773495039,-1983.68,0.00020821,2]
[346203111,1734773495049,-502.92311733,0.00020821,2]
[346203112,1734773495060,-500.0,0.00020821,2]
[346203113,1734773495069,-500.0,0.00020821,2]
[346203114,1734773495078,-500.0,0.00020821,2]
[346203115,1734773495087,-500.0,0.00020821,2]
[346203116,1734773495256,-500.0,0.00020821,2]
[346203117,1734773495266,-3485.33,0.00020821,2]
[346203118,1734773495276,-500.0,0.00020821,2]
[346203119,1734773495293,-500.0,0.00020821,2]
[346203120,1734773495302,-500.0,0.00020821,2]
[346203121,1734773495311,-2588.55,0.00020821,2]
[346203122,1734773495321,-500.0,0.00020821,2]
[346203123,1734773495331,-500.0,0.00020821,2]
[346203124,1734773495340,-1085.44,0.00020821,2]
[346203125,1734773495349,-885.13,0.00020821,2]
[346203126,1734773495359,-557.35,0.00020821,2]
[346203127,1734773495369,-1108.63,0.00020821,2]
[346203128,1734773495378,-1207.07,0.00020821,2]
[346203129,1734773495387,-500.0,0.00020821,2]
[346203130,1734773495396,-500.0,0.00020821,2]
[346203131,1734773495405,-4669.83,0.00020821,2]
[346203132,1734773495414,-500.0,0.00020821,2]
[346203133,1734773495423,-3265.96,0.00020821,2]
[346203134,1734773495432,-1587.64,0.00020821,2]
[346203135,1734773495441,-877.61,0.00020821,2]
[346203136,1734773495450,-500.0,0.00020821,2]
[346203137,1734773495460,-828.22,0.00020821,2]
[346203138,1734773495468,-500.0,0.00020821,2]
[346203139,1734773495477,-4399.07,0.00020821,2]
[346203140,1734773495488,-741.63,0.00020821,2]
[346203141,1734773495498,-500.0,0.00020821,2]
[346203142,1734773495508,-828.21,0.00020821,2]
[346203143,1734773495517,-570.11,0.00020821,2]
[346203144,1734773495526,-500.0,0.00020821,2]
[346203145,1734773495537,-500.0,0.00020821,2]
[346203146,1734773495547,-500.0,0.00020821,2]
[346203147,1734773495556,-500.0,0.00020821,2]
[346203148,1734773495566,-541.73,0.00020821,2]
[346203149,1734773495576,-500.0,0.00020821,2]
[346203150,1734773495586,-1087.72,0.00020821,2]
[346203151,1734773495595,-500.0,0.00020821,2]
[346203152,1734773495605,-500.0,0.00020821,2]
[346203153,1734773495616,-932.89,0.00020821,2]
[346203154,1734773495626,-1129.8,0.00020821,2]
[346203155,1734773495636,-573.7,0.00020821,2]
[346203156,1734773495646,-500.0,0.00020821,2]
[346203157,1734773495656,-1331.05,0.00020821,2]
[346203158,1734773495665,-500.0,0.00020821,2]
[346203159,1734773495675,-1360.88,0.00020821,2]
[346203160,1734773495684,-1044.55,0.00020821,2]
[346203161,1734773495694,-2053.76,0.00020821,2]
[346203162,1734773495704,-500.0,0.00020821,2]
[346203163,1734773495714,-1900.92,0.00020821,2]
[346203164,1734773495725,-1066.83,0.00020821,2]
[346203165,1734773495735,-500.0,0.00020821,2]
[346203166,1734773495745,-500.0,0.00020821,2]
[346203167,1734773495755,-500.0,0.00020821,2]
[346203168,1734773495765,-2895.88,0.00020821,2]
[346203169,1734773495775,-500.0,0.00020821,2]
[346203170,1734773495789,-2461.23,0.00020821,2]
[346203171,1734773495798,-632.84,0.00020821,2]
[346203172,1734773495807,-667.86,0.00020821,2]
[346203173,1734773495816,-2694.25,0.00020821,2]
[346203174,1734773495826,-500.0,0.00020821,2]
[346203175,1734773495836,-1168.89,0.00020821,2]
[346203176,1734773495845,-710.98,0.00020821,2]
[346203177,1734773495854,-4557.64,0.00020821,2]
[346203178,1734773495863,-500.0,0.00020821,2]
[346203179,1734773495873,-729.31,0.00020821,2]
[346203180,1734773495883,-1694.89,0.00020821,2]
[346203181,1734773495892,-682.43,0.00020821,2]
[346203182,1734773495901,-1187.51,0.00020821,2]
[346203183,1734773495911,-1237.16,0.00020821,2]
[346203184,1734773495920,-708.66,0.00020821,2]
[346203185,1734773495929,-1021.5,0.00020821,2]
[346203186,1734773495938,-545.43,0.00020821,2]
[346203187,1734773495947,-765.55,0.00020821,2]
[346203188,1734773495957,-500.0,0.00020821,2]
[346203189,1734773495967,-500.0,0.00020821,2]
[346203190,1734773495976,-621.25,0.00020821,2]
[346203191,1734773495985,-693.27,0.00020821,2]
[346203192,1734773495995,-500.0,0.00020821,2]
[346203193,1734773496005,-2780.15,0.00020821,2]
[346203194,1734773496014,-500.0,0.00020821,2]
[346203195,1734773496023,-784.83,0.00020821,2]
[346203196,1734773496035,-500.0,0.00020821,2]
[346203197,1734773496044,-3200.14,0.00020821,2]
[346203198,1734773496054,-1366.98,0.00020821,2]
[346203199,1734773496063,-500.0,0.00020821,2]
[346203200,1734773496072,-3460.69,0.00020821,2]
[346203201,1734773496083,-500.0,0.00020821,2]
[346203202,1734773496092,-500.0,0.00020821,2]
[346203203,1734773496102,-2823.93,0.00020821,2]
[346203204,1734773496111,-1842.46,0.00020821,2]
[346203205,1734773496119,-790.83,0.00020821,2]
[346203206,1734773496130,-1119.96,0.00020821,2]
[346203207,1734773496140,-981.15,0.00020821,2]
[346203208,1734773496149,-1567.9,0.00020821,2]
[346203209,1734773496159,-151.0,0.00020821,2]
[346203210,1734773496168,-871.54,0.00020821,2]
[346203211,1734773496177,-500.0,0.00020821,2]
[346203212,1734773496187,-1851.68,0.00020821,2]
[346203213,1734773496197,-1859.69,0.00020821,2]
[346203214,1734773496206,-1465.88,0.00020821,2]
[346203215,1734773496217,-794.89,0.00020821,2]
[346203216,1734773496227,-1367.48,0.00020821,2]
[346203217,1734773496238,-541.28,0.00020821,2]
[346203218,1734773496249,-3584.85,0.00020821,2]
[346203219,1734773496260,-500.0,0.00020821,2]
[346203220,1734773496269,-500.0,0.00020821,2]
[346203221,1734773496279,-500.0,0.00020821,2]
[346203222,1734773496291,-500.0,0.00020821,2]
[346203223,1734773496300,-2813.95,0.00020821,2]
[346203224,1734773496309,-506.82,0.00020821,2]
[346203225,1734773496320,-572.38,0.00020821,2]
[346203226,1734773496329,-500.0,0.00020821,2]
[346203227,1734773496339,-707.8,0.00020821,2]
[346203228,1734773496349,-3748.8,0.00020821,2]
[346203229,1734773496358,-625.29,0.00020821,2]
[346203230,1734773496368,-493.36175446,0.00020821,2]
[346203231,1734773496379,-900.78,0.00020821,2]
[346203232,1734773496388,-1109.38,0.00020821,2]
[346203233,1734773496397,-500.0,0.00020821,2]
[346203234,1734773496408,-500.0,0.00020821,2]
[346203235,1734773496417,-1097.85,0.00020821,2]
[346203236,1734773496426,-2789.81,0.00020821,2]
[346203237,1734773496436,-756.9,0.00020821,2]
[346203238,1734773496446,-500.0,0.00020821,2]
[346203239,1734773496457,-930.55,0.00020821,2]
[346203240,1734773496467,-1857.4,0.00020821,2]
[346203241,1734773496477,-500.0,0.00020821,2]
[346203242,1734773496487,-500.0,0.00020821,2]
[346203243,1734773496496,-500.0,0.00020821,2]
[346203244,1734773496506,-151.0,0.00020821,2]
[346203245,1734773496515,-909.54,0.00020821,2]
[346203246,1734773496524,-1694.4,0.00020821,2]
[346203247,1734773496534,-500.0,0.00020821,2]
[346203248,1734773496543,-2292.97,0.00020821,2]
[346203249,1734773496553,-500.0,0.00020821,2]
[346203250,1734773496563,-500.0,0.00020821,2]
[346203251,1734773496572,-911.05,0.00020821,2]
[346203252,1734773496582,-724.3,0.00020821,2]
[346203253,1734773496592,-420.41257229,0.00020821,2]
[346203254,1734773496602,-2330.29,0.00020821,2]
[346203255,1734773496612,-3781.43,0.00020821,2]
[346203256,1734773496622,-2095.36,0.00020821,2]
[346203257,1734773496631,-1261.37,0.00020821,2]
[346203258,1734773496641,-151.0,0.00020821,2]
[346203259,1734773496651,-500.0,0.00020821,2]
[346203260,1734773496660,-500.0,0.00020821,2]
[346203261,1734773496670,-2082.75,0.00020821,2]
[346203262,1734773496679,-991.07,0.00020821,2]
[346203263,1734773496688,-151.0,0.00020821,2]
[346203264,1734773496697,-500.0,0.00020821,2]
[346203265,1734773496707,-6035.330567,0.00020821,2]
[346203266,1734773496717,-500.0,0.00020821,2]
[346203267,1734773496727,-500.0,0.00020821,2]
[346203268,1734773496736,-9686.77,0.00020821,2]
[346203269,1734773496745,-1882.98,0.00020821,2]
[346203270,1734773496755,-6035.330567,0.00020821,2]
[346203271,1734773496765,-500.0,0.00020821,2]
[346203272,1734773496775,-6034.06,0.00020821,2]
[346203273,1734773496787,-958.49,0.00020821,2]
[346203274,1734773496798,-4702.84,0.00020821,2]
[346203275,1734773496808,-500.0,0.00020821,2]
[346203276,1734773496819,-2607.23,0.00020821,2]
[346203277,1734773496830,-500.0,0.00020821,2]
[346203278,1734773496840,-459.88319379,0.00020821,2]
[346203279,1734773496851,-1501.37,0.00020821,2]
[346203280,1734773496860,-500.0,0.00020821,2]
[346203281,1734773496870,-500.0,0.00020821,2]
[346203282,1734773496879,-1764.07,0.00020821,2]
[346203283,1734773496889,-5371.31,0.00020821,2]
[346203284,1734773496898,-1482.95,0.00020821,2]
[346203285,1734773496907,-1579.5,0.00020821,2]
[346203286,1734773496917,-2844.23,0.00020821,2]
[346203287,1734773496926,-849.58,0.00020821,2]
[346203288,1734773496936,-500.0,0.00020821,2]
[346203289,1734773496946,-500.0,0.00020821,2]
[346203290,1734773496956,-764.29,0.00020821,2]
[346203291,1734773496966,-500.0,0.00020821,2]
[346203292,1734773496975,-6231.42,0.00020821,2]
[346203293,1734773496984,-500.0,0.00020821,2]
[346203294,1734773496994,-2094.42,0.00020821,2]
[346203295,1734773497005,-500.0,0.00020821,2]
[346203296,1734773497014,-151.0,0.00020821,2]
[346203297,1734773497024,-1010.69,0.00020821,2]
[346203298,1734773497035,-751.14,0.00020821,2]
[346203299,1734773497045,-3462.44,0.00020821,2]
[346203300,1734773497055,-151.0,0.00020821,2]
[346203301,1734773497065,-3160.9,0.00020821,2]
[346203302,1734773497074,-24645.27,0.00020821,2]
[346203303,1734773497083,-8247.4,0.00020821,2]
[346203304,1734773497095,-2367.12,0.00020821,2]
[346203305,1734773497105,-500.0,0.00020821,2]
[346203306,1734773497114,-151.0,0.00020821,2]
[346203307,1734773497123,-1656.5,0.00020821,2]
[346203308,1734773497132,-6261.44,0.00020821,2]
[346203309,1734773497142,-781.22,0.00020821,2]
[346203310,1734773497151,-3393.2,0.00020821,2]
[346203311,1734773497161,-500.0,0.00020821,2]
[346203312,1734773497171,-500.0,0.00020821,2]
[346203313,1734773497180,-1460.86,0.00020821,2]
[346203314,1734773497191,-500.0,0.00020821,2]
[346203315,1734773497201,-1877.49,0.00020821,2]
[346203316,1734773497210,-2708.81,0.00020821,2]
[346203317,1734773497220,-1267.07,0.00020821,2]
[346203318,1734773497228,-1040.82,0.00020821,2]
[346203319,1734773497239,-500.0,0.00020821,2]
[346203320,1734773497249,-767.73,0.00020821,2]
[346203321,1734773497259,-500.0,0.00020821,2]
[346203322,1734773497267,-500.0,0.00020821,2]
[346203323,1734773497277,-562.79,0.00020821,2]
[346203324,1734773497287,-154.14021,0.00020821,2]
[346203325,1734773497296,-8117.57,0.00020821,2]
[346203326,1734773497306,-500.0,0.00020821,2]
[346203327,1734773497316,-1296.7,0.00020821,2]
[346203328,1734773497325,-3164.99,0.00020821,2]
[346203329,1734773497335,-2412.38,0.00020821,2]
[346203330,1734773497345,-506.7514303,0.00020821,2]
[346203331,1734773497354,-704.84,0.00020821,2]
[346203332,1734773497363,-589.2,0.00020821,2]
[346203333,1734773497373,-2899.73,0.00020821,2]
[346203334,1734773497383,-862.32,0.00020821,2]
[346203335,1734773497392,-500.0,0.00020821,2]
[346203336,1734773497401,-151.0,0.00020821,2]
[346203337,1734773497411,-500.0,0.00020821,2]
[346203338,1734773497421,-857.89,0.00020821,2]
[346203339,1734773497430,-812.4,0.00020821,2]
[346203340,1734773497440,-500.0,0.00020821,2]
[346203341,1734773497449,-634.56,0.00020821,2]
[346203342,1734773497458,-500.0,0.00020821,2]
[346203343,1734773497467,-768.33,0.00020821,2]
[346203344,1734773497476,-690.88,0.00020821,2]
[346203345,1734773497485,-1896.12,0.00020821,2]
[346203346,1734773497494,-1858.22,0.00020821,2]
[346203347,1734773497503,-500.0,0.00020821,2]
[346203348,1734773497512,-884.99,0.00020821,2]
[346203349,1734773497522,-214.13755295,0.00020821,2]
[346203350,1734773497531,-500.0,0.00020821,2]
[346203351,1734773497540,-500.0,0.00020821,2]
[346203352,1734773497549,-1376.83,0.00020821,2]
[346203353,1734773497559,-500.0,0.00020821,2]